bitfinex-derivatives/quotes_ETHF0:USTF0_20250504
["timestamp","ask_amount","ask_price","bid_price","bid_amount"]
[1746396237211,1.0956,1825.2,1825.1,3.2078]
[1746396237410,3.968,1825.4,1825.1,7.3913876]
[1746396237602,1.0956,1825.2,1825.1,7.3913876]
[1746396237902,1.09584,1824.8,1824.7,3.2078]
[1746396238106,1.09584,1824.8,1824.7,3.59508049]
[1746396238304,1.0962,1824.2,1824.1,3.2078]
[1746396238498,1.09632,1824.0,1823.9,3.2078]
[1746396238806,3.2078,1824.0,1823.9,2.07170049]
[1746396239011,1.53527287,1824.0,1823.9,2.07170049]
[1746396239208,3.2078,1824.0,1823.8,1.6405]
[1746396239412,3.2078,1824.0,1823.9,2.07170049]
[1746396239712,4.0156,1824.5,1823.9,2.07170049]
[1746396239907,8.9042,1824.7,1824.3,2.07170049]
[1746396240105,3.2078,1824.7,1824.6,2.07170049]
[1746396240406,2.5235,1825.2,1824.6,2.07170049]
[1746396240604,2.5235,1825.2,1824.9,2.07170049]
[1746396240810,7.9332,1825.2,1824.6,1.49273006]
[1746396241106,3.2078,1825.1,1824.6,1.49273006]
[1746396241313,1.7039,1825.0,1824.6,1.49273006]
[1746396241608,1.09572,1825.1,1824.6,1.49273006]
[1746396241817,3.2078,1825.3,1824.7,4.30369]
[1746396242001,4.30337,1825.3,1824.7,3.2078]
[1746396242205,1.7039,1825.2,1824.7,1.49273006]
[1746396242407,2.79955,1825.2,1824.7,1.49273006]
[1746396242610,4.3035,1825.1,1824.7,1.49273006]
[1746396242915,1.7039,1825.0,1824.7,1.49273006]
[1746396243215,3.2078,1824.9,1824.7,1.49273006]
[1746396243413,3.2078,1824.9,1824.5,3.2078]
[1746396243612,5.0361,1825.3,1824.3,7.3828]
[1746396243613,4.30373,1824.7,1824.3,7.3828]
[1746396243916,3.2078,1824.7,1824.3,7.3828]
[1746396244115,1.096,1824.6,1824.3,1.49273006]
[1746396244317,3.2078,1824.7,1824.4,1.6776]
[1746396244819,3.2078,1825.1,1824.4,4.26641006]
[1746396245024,3.2078,1824.9,1824.5,3.2078]
[1746396245212,3.2078,1824.9,1824.6,1.6776]
[1746396245614,3.2078,1825.3,1824.7,0.8178]
[1746396245923,1.6361,1825.5,1825.0,3.2078]
[1746396246120,3.56653328,1825.6,1825.2,1.09559]
[1746396246323,3.56653328,1825.6,1825.3,9.8782]
[1746396246621,3.56653328,1825.6,1825.4,1.6776]
[1746396246918,3.56653328,1825.6,1825.3,1.49273006]
[1746396247117,1.09543,1825.5,1825.4,1.6776]
[1746396247320,1.6626,1825.5,1825.2,1.611]
[1746396247526,1.09554,1825.3,1825.2,1.611]
[1746396247726,1.09554,1825.3,1825.2,3.10373006]
[1746396248024,1.09566,1825.1,1825.0,0.8447]
[1746396248213,3.2078,1825.2,1824.5,3.2078]
[1746396248415,1.09587,1824.8,1824.5,3.2078]
[1746396248727,1.0959,1824.7,1824.6,1.611]
[1746396249226,1.0959,1824.7,1824.6,3.10373006]
[1746396250016,1.09606,1824.5,1824.3,0.8447]
[1746396250229,3.2078,1824.4,1824.2,0.8573]
[1746396250525,1.6626,1824.6,1824.3,1.7241]
[1746396250727,1.09612,1824.4,1824.3,1.7241]
[1746396250928,1.09605,1824.5,1824.3,3.21683006]
[1746396251132,4.30385,1824.5,1824.4,1.7241]
[1746396251423,1.09599,1824.6,1824.4,1.7241]
[1746396251723,1.09593,1824.7,1824.4,3.21683006]
[1746396251921,7.3828,1824.9,1824.4,0.21683006]
[1746396252226,3.2078,1824.7,1824.4,0.21683006]
[1746396252922,3.2078,1825.2,1824.4,3.42463006]
[1746396253228,3.2078,1825.2,1824.8,4.30361]
[1746396253429,2.71776,1825.3,1824.9,1.6656]
[1746396253821,1.6222,1825.3,1825.0,1.09572]
[1746396254021,4.66197328,1825.5,1825.1,1.09566]
[1746396254229,4.66197328,1825.5,1825.0,3.2078]
[1746396254230,4.66197328,1825.5,1825.0,4.52032006]
[1746396254528,7.86977328,1825.5,1825.0,3.42463006]
[1746396254731,1.09549,1825.4,1825.0,4.52033006]
[1746396254928,4.30338,1825.3,1825.0,3.42463006]
[1746396255125,4.30338,1825.3,1825.1,1.6456]
[1746396255331,3.2078,1825.3,1825.1,1.6456]
[1746396255529,6.00683,1825.4,1825.1,1.86243006]
[1746396255728,4.0276,1825.9,1825.1,1.86243006]
[1746396256024,1.7035,1825.8,1825.1,1.86243006]
[1746396256231,1.7035,1825.8,1825.2,4.176]
[1746396256426,1.09545,1825.5,1825.3,1.6546]
[1746396256629,1.7035,1825.8,1825.3,1.6546]
[1746396256828,1.7035,1825.8,1825.3,2.96697006]
[1746396256829,1.09538,1825.6,1825.3,2.96697006]
[1746396257026,1.09541,1825.6,1825.4,1.6546]
[1746396257426,1.09542,1825.5,1825.4,1.87143006]
[1746396257636,1.09534,1825.7,1825.4,1.87143006]
[1746396258135,1.5636,1825.6,1825.4,1.87143006]
[1746396258533,1.5636,1825.6,1825.4,2.5124]
[1746396258737,2.65898,1825.6,1825.4,2.72923006]
[1746396259337,1.5636,1825.6,1825.4,1.87143006]
[1746396259728,3.2078,1825.5,1825.2,0.7883]
[1746396259932,1.674,1825.4,1825.2,2.3972]
[1746396260231,4.30324,1825.5,1825.2,2.3972]
[1746396260232,1.09538,1825.6,1825.2,2.61403006]
[1746396260437,1.09534,1825.7,1825.2,2.61403006]
[1746396260639,1.09526,1825.8,1825.4,1.09542]
[1746396260838,2.76926,1825.8,1825.5,1.6089]
[1746396261038,1.09514,1826.0,1825.5,1.6089]
[1746396261238,1.09532,1825.7,1825.5,1.82573006]
[1746396261438,1.09528,1825.8,1825.5,1.82573006]
[1746396261638,1.09528,1825.8,1825.5,2.92115006]
[1746396262340,1.09528,1825.8,1825.5,2.92114006]
[1746396262542,3.2078,1825.8,1825.5,1.82573006]
[1746396262839,1.6051,1825.7,1825.5,1.82573006]
[1746396263139,1.09536,1825.6,1825.5,1.82573006]
[1746396263435,1.6051,1825.7,1825.2,0.7883]
[1746396263641,1.09549,1825.4,1825.2,2.67003006]
[1746396263941,4.8129,1825.5,1825.2,2.67003006]
[1746396264143,3.2078,1825.8,1825.2,2.67003006]
[1746396264347,3.2078,1825.8,1825.7,1.0953]
[1746396264738,4.66162328,1826.1,1825.8,1.09524]
[1746396264948,4.66162328,1826.1,1825.9,2.76007]
[1746396265241,6.26672328,1826.1,1825.9,2.76007]
[1746396265443,3.56653328,1826.1,1826.0,1.09512]
[1746396265642,3.56653328,1826.1,1826.0,2.66422]
[1746396265838,3.56653328,1826.1,1826.0,2.88105006]
[1746396266241,3.56653328,1826.1,1826.0,7.88105006]
[1746396266445,3.56653328,1826.1,1826.0,1.78593006]
[1746396266647,3.56653328,1826.1,1826.0,7.88105006]
[1746396267149,3.56653328,1826.1,1826.0,2.88105006]
[1746396267542,3.56653328,1826.1,1826.0,1.78593006]
[1746396268542,4.66159328,1826.1,1826.0,1.78593006]
[1746396268747,1.09506,1826.1,1826.0,0.21683006]
[1746396269143,1.09504,1826.2,1826.0,1.80783006]
[1746396269339,2.80954,1826.2,1826.0,1.80783006]
[1746396269545,1.7145,1826.2,1826.0,1.80783006]
[1746396269741,1.09498,1826.3,1826.0,2.90291006]
[1746396269946,3.2078,1826.5,1826.2,1.09498]
[1746396270247,1.09489,1826.4,1826.3,1.591]
[1746396270551,4.30261,1826.6,1826.3,1.591]
[1746396270748,1.7145,1826.7,1826.5,4.3026]
[1746396271136,1.7145,1826.7,1826.6,1.591]
[1746396271545,1.7145,1826.7,1826.6,2.68576]
[1746396271744,3.2078,1826.8,1826.6,2.68576]
[1746396271940,6.03774,1826.8,1826.7,1.7141]
[1746396272142,4.9431,1826.8,1826.5,1.93093006]
[1746396272445,2.82996,1826.8,1826.5,1.93093006]
[1746396272846,1.7353,1826.8,1826.7,1.0947]
[1746396273049,3.56653328,1827.0,1826.7,1.0947]
[1746396273249,1.09459,1826.9,1826.8,1.7246344]
[1746396273449,1.7353,1826.9,1826.8,1.7246344]
[1746396273648,2.82988,1826.9,1826.8,1.7246344]
[1746396273851,1.7353,1826.9,1826.8,1.7246344]
[1746396274050,3.2078,1827.1,1826.9,1.09456]
[1746396274241,3.2078,1827.1,1827.0,1.7246344]
[1746396274446,4.30226,1827.1,1827.0,1.7246344]
[1746396274847,3.2078,1827.1,1827.0,1.7246344]
[1746396275047,1.09444,1827.2,1827.0,1.7246344]
[1746396275353,1.6653656,1827.1,1827.0,1.7141]
[1746396275648,2.7598256,1827.1,1827.0,1.7141]
[1746396275839,1.6653656,1827.1,1827.0,1.7141]
[1746396276250,2.7598256,1827.1,1827.0,1.7141]
[1746396276749,1.6653656,1827.1,1826.8,0.8652]
[1746396276951,5.9676756,1827.1,1826.8,0.8652]
[1746396277249,1.09466,1826.8,1826.5,4.3026]
[1746396277445,3.2078,1826.9,1826.5,1.6931]
[1746396277644,1.09494,1826.3,1826.2,0.7834]
[1746396277841,3.2078,1826.4,1826.2,0.7834]
[1746396278053,1.09489,1826.4,1826.2,0.7834]
[1746396278548,1.5973,1826.3,1826.2,2.4765]
[1746396278752,2.69224,1826.3,1826.2,2.4765]
[1746396279346,1.5973,1826.3,1826.2,2.4765]
[1746396279554,2.68479277,1826.3,1826.2,0.7834]
[1746396280051,1.58985277,1826.3,1825.9,0.8375]
[1746396280251,1.09509,1826.1,1825.9,1.05433006]
[1746396280447,1.09512,1826.0,1825.9,0.21683006]
[1746396280650,3.2078,1826.0,1825.6,0.7871]
[1746396280849,1.0952,1825.9,1825.6,1.00393006]
[1746396281048,3.2078,1826.0,1825.4,2.5353]
[1746396281352,1.09557,1825.3,1825.0,3.2078]
[1746396281553,3.2078,1825.5,1825.0,3.2078]
[1746396281743,4.30326,1825.5,1825.0,4.52030006]
[1746396281950,0.42789675,1825.4,1825.1,1.09562]
[1746396282145,1.09544,1825.5,1825.2,1.7286]
[1746396282349,0.8368,1825.7,1825.3,3.2078]
[1746396282551,3.2078,1825.8,1825.2,1.94543006]
[1746396282552,3.2078,1825.8,1825.4,1.7286]
[1746396282750,1.6228,1825.7,1825.6,1.09536]
[1746396283053,1.0951,1826.1,1825.7,1.09528]
[1746396283246,1.6228,1826.0,1825.8,1.09523]
[1746396283452,1.6228,1826.0,1825.8,1.09522]
[1746396283647,1.6228,1826.0,1825.8,1.31205006]
[1746396283953,4.265,1826.3,1825.9,3.2078]
[1746396284155,2.75014,1826.2,1825.9,1.09516]
[1746396284354,2.7501,1826.2,1826.1,0.0256816]
[1746396285353,2.7501,1826.2,1826.1,0.03885406]
[1746396286144,3.2078,1826.4,1826.1,0.25568412]
[1746396286344,4.8629,1826.4,1826.1,0.25568412]
[1746396286753,1.095,1826.2,1826.1,0.25568412]
[1746396287154,1.52363727,1826.2,1826.1,0.03885406]
[1746396287354,4.73143727,1826.2,1826.1,0.03885406]
[1746396287852,1.52367727,1826.2,1826.1,0.05205401]
[1746396288154,6.52367727,1826.2,1826.1,0.05205401]
[1746396288357,9.73147727,1826.2,1826.1,0.05205401]
[1746396288562,8.63643727,1826.2,1825.5,6.9699]
[1746396288755,6.18573727,1826.1,1825.5,1.82633006]
[1746396289058,1.09522,1825.9,1825.8,0.01319995]
[1746396289462,2.12503727,1825.9,1825.8,0.0263999]
[1746396289652,3.22025727,1825.9,1825.8,0.0263999]
[1746396289851,11.42805727,1825.9,1825.8,0.0263999]
[1746396290051,6.42805727,1825.9,1825.8,0.03959985]
[1746396290252,2.12503727,1825.9,1825.8,0.03959985]
[1746396290555,2.12503727,1825.9,1825.8,4.55946991]
[1746396290755,2.12503727,1825.9,1825.8,1.35166991]
[1746396290962,0.42863727,1825.9,1825.8,8.82446991]
[1746396291160,1.6012,1826.1,1825.9,1.09518]
[1746396291560,1.6012,1826.1,1825.9,1.31201006]
[1746396291757,1.6012,1826.1,1825.8,0.03959985]
[1746396291956,1.6012,1826.1,1825.9,3.2078]
[1746396292156,2.69626,1826.1,1826.0,0.0527998]
[1746396292356,1.6012,1826.1,1826.0,0.0527998]
[1746396292656,2.02954363,1826.1,1826.0,1.16111975]
[1746396293255,2.02954363,1826.1,1826.0,1.1743197]
[1746396293455,2.02954363,1826.1,1826.0,0.0791997]
[1746396294752,3.12460363,1826.1,1826.0,0.0791997]
[1746396294958,2.02954363,1826.1,1826.0,1.1743197]
[1746396295262,2.02954363,1826.1,1826.0,0.08649152]
[1746396295652,3.12460363,1826.1,1826.0,0.08649152]
[1746396296055,2.02954363,1826.1,1826.0,0.08649152]
[1746396296260,3.12460363,1826.1,1826.0,0.08649152]
[1746396298664,8.12460363,1826.1,1826.0,0.08649152]
[1746396299461,2.73787,1826.0,1825.3,4.886]
[1746396299658,1.09539,1825.6,1825.3,5.10283006]
[1746396299867,2.13904363,1825.5,1825.3,5.10283006]
[1746396300055,3.23447363,1825.5,1825.3,5.83463006]
[1746396300260,2.13904363,1825.5,1825.3,3.42463006]
[1746396300460,1.7107,1825.5,1825.3,4.52014006]
[1746396300660,3.2078,1825.7,1825.5,1.0954]
[1746396300865,3.2078,1825.7,1825.4,2.4262]
[1746396301166,3.2078,1825.7,1825.5,1.09539]
[1746396301364,3.2078,1825.7,1825.6,0.88094487]
[1746396301567,3.2078,1825.7,1825.6,2.46094487]
[1746396301760,4.73161266,1825.7,1825.6,0.01324487]
[1746396302162,6.32961266,1825.7,1825.6,0.23007493]
[1746396302462,6.32961266,1825.7,1825.6,0.02644337]
[1746396303061,14.42231266,1825.7,1825.0,3.2078]
[1746396303264,1.09566,1825.1,1825.0,5.15443006]
[1746396303462,1.09566,1825.1,1825.0,1.95983043]
[1746396303663,4.30346,1825.1,1825.0,0.23003043]
[1746396303864,4.30346,1825.1,1825.0,0.01320037]
[1746396304072,2.31125098,1825.1,1825.0,0.01320037]
[1746396304267,5.51905098,1825.1,1825.0,0.01320037]
[1746396305264,1.09596,1824.6,1824.5,2.5469]
[1746396305461,1.09596,1824.6,1824.5,2.76373006]
[1746396305666,3.2078,1824.9,1824.5,2.77692893]
[1746396305869,1.5833,1824.8,1824.5,2.77692893]
[1746396306073,3.9952,1825.1,1824.7,1.09588]
[1746396306268,0.42777445,1825.0,1824.8,1.6844]
[1746396306571,1.08258113,1824.9,1824.8,1.6844]
[1746396306769,1.08258113,1824.9,1824.8,1.90123006]
[1746396306969,3.2078,1825.1,1824.8,1.90123006]
[1746396307471,3.2078,1825.1,1824.9,1.94756]
[1746396307671,1.09556,1825.3,1825.0,3.61862]
[1746396307870,1.09557,1825.3,1825.0,3.61862]
[1746396308081,1.0956,1825.2,1825.0,3.83545006]
[1746396308261,1.5746,1825.4,1825.0,2.73973006]
[1746396308467,3.56653328,1825.7,1825.2,3.2078]
[1746396308667,1.09552,1825.4,1825.3,2.3683]
[1746396308867,0.42812544,1825.6,1825.4,1.09546]
[1746396309068,1.09538,1825.6,1825.5,2.392]
[1746396309273,2.66998,1825.6,1825.5,2.392]
[1746396309668,1.09554,1825.4,1824.9,9.0275]
[1746396309970,1.09557,1825.3,1825.0,2.6605]
[1746396310164,5.21030911,1825.6,1825.0,1.5648]
[1746396310470,1.09558,1825.3,1825.0,2.87734006]
[1746396310677,1.09566,1825.1,1825.0,1.78163006]
[1746396311173,4.30346,1825.1,1825.0,1.78163006]
[1746396311474,1.09566,1825.1,1825.0,1.78163006]
[1746396311871,5.95834,1825.2,1825.0,1.78163006]
[1746396312273,1.6549,1825.2,1825.0,1.78163006]
[1746396312574,3.2078,1825.8,1825.3,1.09553]
[1746396312773,2.75022,1825.7,1825.4,2.81976]
[1746396312975,1.09538,1825.6,1825.4,1.7243]
[1746396313175,2.75023,1825.7,1825.4,3.89366006]
[1746396313366,5.95803,1825.7,1825.4,3.89366006]
[1746396313565,8.2339,1825.9,1825.6,1.09536]
[1746396313772,3.2078,1825.9,1825.7,1.7243]
[1746396313966,3.56653328,1826.0,1825.9,1.09518]
[1746396314172,3.56653328,1826.0,1825.9,1.10842567]
[1746396314375,3.56653328,1826.0,1825.9,8.8759014]
[1746396314770,3.56653328,1826.0,1825.9,2.7807214]
[1746396315171,6.26345328,1826.0,1825.9,2.7807214]
[1746396315478,6.69126809,1826.0,1825.9,0.02649134]
[1746396315975,3.99434809,1826.0,1825.9,1.13494024]
[1746396316166,3.99434809,1826.0,1825.9,8.8259703]
[1746396316368,3.99434809,1826.0,1825.9,3.8259703]
[1746396316369,0.42781481,1826.0,1825.9,3.8259703]
[1746396316677,1.6018,1826.3,1826.1,1.09505]
[1746396316975,1.6018,1826.3,1826.2,1.6803]
[1746396317167,1.6018,1826.3,1826.2,1.74182806]
[1746396317565,2.69674,1826.3,1826.2,1.74182806]
[1746396318880,5.90454,1826.3,1826.2,0.06152806]
[1746396319280,6.33228753,1826.3,1826.2,0.06152806]
[1746396320374,1.09518,1825.9,1825.8,0.8403]
[1746396320581,1.09518,1825.9,1825.8,0.21683006]
[1746396320879,3.2078,1825.9,1825.7,1.5988]
[1746396321081,1.09524,1825.8,1825.7,1.5988]
[1746396321681,1.7296,1825.8,1825.7,1.5988]
[1746396322277,2.82484,1825.8,1825.7,1.5988]
[1746396322480,3.2078,1825.9,1825.7,1.81563006]
[1746396322682,1.7296,1826.1,1825.9,1.09516]
[1746396322984,3.2078,1826.5,1826.1,1.09503]
[1746396323183,1.09494,1826.3,1826.2,1.627]
[1746396323480,0.42846901,1826.4,1826.2,1.627]
[1746396323481,1.52337901,1826.4,1826.2,1.627]
[1746396323680,1.09494,1826.3,1826.2,1.84383006]
[1746396323882,1.6516,1826.4,1826.2,1.84383006]
[1746396324179,1.09494,1826.3,1826.2,1.84383006]
[1746396325181,1.09494,1826.3,1826.2,1.85712051]
[1746396325685,1.09494,1826.3,1826.2,1.87041096]
[1746396326081,3.2078,1826.5,1826.3,1.09494]
[1746396326285,3.2078,1826.5,1826.4,1.13475135]
[1746396326478,1.09467,1826.8,1826.5,1.09478]
[1746396326676,0.42845098,1826.7,1826.6,1.7196]
[1746396327085,1.6271,1826.8,1826.6,2.81436]
[1746396327288,2.72177,1826.8,1826.7,0.03987135]
[1746396327585,3.14998396,1826.8,1826.7,0.03987135]
[1746396328385,7.05531396,1826.8,1826.1,3.2078]
[1746396328584,3.2078,1826.2,1826.0,0.21683006]
[1746396328783,1.6271,1826.1,1826.0,0.21683006]
[1746396328990,1.6271,1826.1,1826.0,1.93643006]
[1746396329382,1.6271,1826.1,1825.9,0.8437]
[1746396329588,1.6271,1826.1,1825.9,2.15567006]
[1746396329788,1.09504,1826.2,1826.0,2.8042]
[1746396329991,1.7335,1826.4,1826.0,1.7091]
[1746396330189,1.7335,1826.4,1826.0,3.02101006]
[1746396330390,3.2078,1826.3,1826.0,1.92593006]
[1746396330601,1.7335,1826.4,1826.0,3.02102006]
[1746396330806,1.09499,1826.3,1826.0,3.02102006]
[1746396331206,1.09504,1826.2,1826.0,3.02102006]
[1746396331401,1.7335,1826.4,1826.0,1.92593006]
[1746396331610,1.09494,1826.3,1826.1,1.09504]
[1746396331806,1.7335,1826.4,1826.0,1.31190006]
[1746396332104,1.09502,1826.2,1826.1,1.7091]
[1746396332299,1.09502,1826.2,1826.1,1.92593006]
[1746396332700,1.09502,1826.2,1826.1,0.21683006]
[1746396333305,1.09497,1826.3,1826.1,1.31189006]
[1746396333605,1.095,1826.2,1826.1,0.21683006]
[1746396334002,1.095,1826.2,1826.1,0.01328726]
[1746396334601,1.06854807,1826.0,1825.9,5.0167]
[1746396334900,1.06854807,1826.0,1825.9,5.23353006]
[1746396335093,1.06854807,1826.0,1825.9,5.24681473]
[1746396335299,2.79014807,1826.0,1825.9,6.85851473]
[1746396335505,1.7216,1826.0,1825.9,7.95369473]
[1746396335706,1.7216,1826.0,1825.9,6.85851473]
[1746396336007,2.81672,1826.0,1825.9,6.85851473]
[1746396336406,2.81672,1826.0,1825.9,2.68551473]
[1746396336708,7.81672,1826.0,1825.9,4.67e-06]
[1746396337005,1.0955,1825.4,1825.2,3.2078]
[1746396337199,1.70828463,1825.3,1825.2,3.42463006]
[1746396337698,2.80382463,1825.3,1825.1,0.8341]
[1746396337904,2.80382463,1825.3,1825.1,1.05093006]
[1746396338395,2.80382463,1825.3,1825.1,2.14658006]
[1746396338592,2.80382463,1825.3,1825.1,1.05093006]
[1746396338797,2.80382463,1825.3,1825.2,0.01330778]
[1746396339196,7.80382463,1825.3,1825.2,0.01330778]
[1746396339407,8.23169943,1825.3,1825.2,0.01330778]
[1746396339906,8.23169943,1825.3,1825.2,0.02160902]
[1746396342110,9.05569943,1825.3,1825.2,0.02160902]
[1746396342411,2.73923,1825.1,1824.5,5.8808]
[1746396342613,1.09594,1824.7,1824.5,6.09763006]
[1746396343004,3.2078,1824.9,1824.5,0.21683006]
[1746396343005,1.09596,1824.6,1824.5,0.21683006]
[1746396343700,1.09617,1824.3,1824.1,5.0101]
[1746396343911,1.09612,1824.4,1824.1,7.91879006]
[1746396344205,1.09614,1824.3,1824.2,1.5956]
[1746396344407,1.0962,1824.2,1824.1,0.21683006]
[1746396344800,3.2078,1824.3,1824.1,0.21683006]
[1746396345002,1.0962,1824.2,1824.1,0.21683006]
[1746396345415,1.09624,1824.2,1823.9,1.6934]
[1746396345609,3.2078,1824.3,1823.9,1.91023006]
[1746396345816,10.12779,1824.6,1824.0,3.2078]
[1746396346005,9.0318,1824.6,1824.3,0.01278415]
[1746396346310,1.09608,1824.4,1824.3,0.01278415]
[1746396346514,9.0318,1824.6,1824.3,0.22961421]
[1746396346515,1.09603,1824.5,1824.3,0.22961421]
[1746396346707,1.09603,1824.5,1824.3,1.92301421]
[1746396347111,1.09603,1824.5,1824.4,0.01278415]
[1746396347310,4.30383,1824.5,1824.4,0.22961421]
[1746396347717,3.2078,1824.5,1824.4,0.22961421]
[1746396347911,3.2078,1824.5,1824.4,0.2429278]
[1746396348113,3.2078,1824.5,1824.4,1.9719278]
[1746396348414,3.2078,1824.5,1824.4,3.04191006]
[1746396348616,3.2078,1824.5,1824.4,3.08132139]
[1746396349008,3.2078,1824.5,1824.4,1.98524139]
[1746396349202,3.2078,1824.5,1824.4,3.08132139]
[1746396349422,3.2078,1824.7,1824.4,3.08130139]
[1746396349610,4.30374,1824.7,1824.4,1.98524139]
[1746396349810,3.2078,1824.7,1824.4,1.98524139]
[1746396350005,1.09581,1824.9,1824.7,1.0959]
[1746396350216,1.09581,1824.9,1824.8,1.78172492]
[1746396350410,3.2078,1825.1,1824.8,1.78172492]
[1746396350609,4.3035,1825.1,1824.8,3.09435498]
[1746396350809,3.2078,1825.1,1824.9,1.09578]
[1746396351113,4.30347,1825.1,1824.9,3.42733006]
[1746396351316,4.30347,1825.1,1825.0,0.06601103]
[1746396351710,4.30347,1825.1,1825.0,1.89774109]
[1746396351912,3.2078,1825.1,1825.0,2.99346109]
[1746396352311,1.90408,1825.3,1825.1,1.09563]
[1746396352517,1.09561,1825.2,1825.0,3.00219281]
[1746396352812,1.09556,1825.3,1825.1,1.09566]
[1746396353116,1.09556,1825.3,1825.2,1.6149]
[1746396353614,3.2078,1825.6,1825.2,10.11431281]
[1746396353806,3.2078,1825.8,1825.7,1.0953]
[1746396354012,9.8365,1826.0,1825.2,5.11431281]
[1746396354213,2.73817,1825.8,1825.2,5.11431281]
[1746396354516,1.02075725,1825.3,1825.0,1.0957]
[1746396354719,1.09556,1825.3,1825.1,1.09566]
[1746396354918,3.2078,1825.6,1825.1,1.31249006]
[1746396355119,1.09552,1825.4,1825.1,1.31249006]
[1746396355513,1.09553,1825.4,1825.1,1.31249006]
[1746396355811,1.09551,1825.4,1825.1,1.31249006]
[1746396356011,3.2078,1825.6,1825.1,1.31249006]
[1746396356220,1.09556,1825.3,1825.1,0.21683006]
[1746396356618,3.2078,1825.6,1825.1,0.21683006]
[1746396356819,1.0956,1825.2,1825.1,0.21683006]
[1746396357313,3.2078,1825.2,1824.9,1.5956]
[1746396357511,1.09572,1825.0,1824.9,0.21683006]
[1746396357718,3.2078,1825.0,1824.4,2.4297]
[1746396357919,3.2078,1825.0,1824.5,1.096]
[1746396358119,1.0959,1824.7,1824.6,1.598]
[1746396358320,1.082671,1824.6,1824.5,0.21683006]
[1746396359022,1.0962,1824.2,1824.0,3.2078]
[1746396359220,1.0962,1824.2,1824.1,0.21683006]
[1746396359621,1.0962,1824.2,1824.1,0.23011906]
[1746396359822,3.2078,1824.4,1824.1,0.23011906]
[1746396359823,1.09617,1824.3,1824.1,0.23011906]
[1746396360021,1.0962,1824.2,1824.1,0.23011906]
[1746396360426,2.80557,1824.3,1824.1,0.23011906]
[1746396360718,4.30362,1824.9,1824.6,1.09595]
[1746396360925,1.09591,1824.7,1824.4,1.09603]
[1746396361225,4.9172,1824.9,1824.5,2.73141]
[1746396361421,1.09586,1824.8,1824.6,1.09596]
[1746396361723,1.09584,1824.8,1824.7,1.661978]
[1746396361915,1.7094,1824.8,1824.7,1.661978]
[1746396362111,3.2078,1824.9,1824.8,1.09584]
[1746396362617,3.2078,1824.9,1824.8,1.135707]
[1746396362825,4.30358,1824.9,1824.8,0.039867]
[1746396363529,2.73967,1824.8,1824.3,0.7883]
[1746396363723,1.09616,1824.3,1824.0,3.52199]
[1746396363923,3.2078,1824.3,1824.0,3.214]
[1746396364117,1.09614,1824.4,1824.0,3.214]
[1746396364314,1.7083,1824.3,1824.0,3.214]
[1746396364518,1.7083,1824.3,1824.1,1.09623]
[1746396364725,2.80444,1824.3,1824.2,1.5691]
[1746396365522,3.2326217,1824.3,1824.2,1.5691]
[1746396366314,1.0962,1824.2,1824.0,4.4685]
[1746396366520,2.67262,1824.2,1824.0,3.3722]
[1746396366720,1.5764,1824.2,1824.0,4.46852]
[1746396366921,2.67261,1824.2,1824.0,4.46852]
[1746396367725,1.5764,1824.2,1824.0,4.4685]
[1746396367926,2.67262,1824.2,1824.0,4.4685]
[1746396368220,2.67262,1824.2,1824.0,3.3722]
[1746396368221,1.09626,1824.1,1824.0,3.3722]
[1746396368426,2.67264,1824.2,1824.0,3.3722]
[1746396368825,3.2078,1824.4,1824.0,3.3722]
[1746396369028,1.706,1824.3,1824.0,3.3722]
[1746396369225,1.09625,1824.2,1824.0,4.4685]
[1746396369433,3.2078,1824.1,1824.0,4.4685]
[1746396369719,1.09626,1824.1,1824.0,3.39382184]
[1746396369920,4.30406,1824.1,1824.0,3.39382184]
[1746396370116,4.30406,1824.1,1824.0,0.02162184]
[1746396370321,3.2078,1824.1,1824.0,0.03490795]
[1746396370525,4.72746522,1824.1,1824.0,0.03490795]
[1746396371721,0.42340522,1824.1,1824.0,1.13122795]
[1746396371915,0.42340522,1824.1,1824.0,1.14451406]
[1746396372121,5.824,1824.6,1824.0,6.14451406]
[1746396372325,3.2078,1824.5,1824.3,1.0961]
[1746396372523,1.656,1824.6,1824.4,1.78788017]
[1746396372825,3.56653328,1825.0,1824.9,1.09578]
[1746396373224,3.56653328,1825.0,1824.9,9.37834628]
[1746396373731,2.26393328,1825.0,1824.9,9.37834628]
[1746396374427,2.26393328,1825.0,1824.9,3.28256628]
[1746396374623,3.35965328,1825.0,1824.9,0.07476628]
[1746396374827,1.09588,1824.8,1824.5,5.11309]
[1746396375028,1.6083,1824.7,1824.6,1.09594]
[1746396375325,4.8161,1824.7,1824.6,1.09594]
[1746396375533,1.6083,1824.7,1824.6,1.09594]
[1746396376125,1.6083,1824.7,1824.5,3.53619]
[1746396376334,2.70421,1824.7,1824.5,2.4402]
[1746396376528,4.8161,1824.7,1824.4,5.19307]
[1746396376831,5.91204,1824.7,1824.4,5.19307]
[1746396377133,4.8161,1824.7,1824.3,2.72703]
[1746396377327,1.09608,1824.4,1824.2,1.0962]
[1746396377626,1.6083,1824.3,1824.2,1.0962]
[1746396377833,1.6083,1824.3,1824.2,2.7421]
[1746396378635,1.6083,1824.3,1824.2,1.6459]
[1746396378833,1.6083,1824.3,1824.2,2.7421]
[1746396379538,1.6083,1824.3,1824.2,1.6459]
[1746396380136,2.70444,1824.3,1824.2,1.6459]
[1746396380338,1.6083,1824.3,1824.2,2.7421]
[1746396380634,4.30374,1824.7,1824.4,1.09604]
[1746396380835,1.6875,1824.6,1824.4,1.09604]
[1746396381036,3.2078,1824.7,1824.5,2.66542]
[1746396381235,5.9912,1824.7,1824.6,0.0216264]
[1746396381739,4.8953,1824.7,1824.6,1.13086962]
[1746396381931,4.30359,1824.9,1824.7,1.09589]
[1746396382132,1.6875,1824.8,1824.7,1.09589]
[1746396382328,1.6875,1824.8,1824.7,2.66529]
[1746396382635,1.6875,1824.8,1824.7,1.09589]
[1746396382840,2.78337,1824.8,1824.7,0.03490962]
[1746396383235,2.78337,1824.8,1824.5,6.5259]